fUSD/lending_fUSD_20260505
["ID","MTS","AMOUNT","RATE_DAILY","PERIOD"]
[421602756,1777938766000,-242.0,0.00045273,30]
[421602761,1777938766000,-860.26,0.00045343,120]
[421602763,1777938766000,-2500.0,0.000454,120]
[421602765,1777938766000,-15344.0308713,0.000454,30]
[421602769,1777938766000,-235.0,0.00045474,30]
[421602767,1777938766000,-860.26,0.00045443,120]
[421602768,1777938766000,-832002.6599,0.00045444,30]
[421602770,1777938766000,-505.0,0.00045477,22]
[421602766,1777938766000,-335.59,0.00045437,120]
[421602712,1777938766000,-5000000.0,0.000451,120]
[421602743,1777938766000,-2073.61,0.00045205,120]
[421602737,1777938766000,-323.87,0.00045205,120]
[421602755,1777938766000,-860.26,0.00045243,120]
[421602733,1777938766000,-1348.29,0.00045205,120]
[421602707,1777938766000,-40818.87017941,0.00045,30]
[421602738,1777938766000,-426.72,0.00045205,120]
[421602706,1777938766000,-145009.0,0.00045,60]
[421602711,1777938766000,-5000000.0,0.000451,120]
[421602708,1777938766000,-150.0,0.00045019,30]
[421602716,1777938766000,-4276.75,0.00045111,2]
[421602718,1777938766000,-860.26,0.00045143,120]
[421602725,1777938766000,-1000.0,0.00045205,2]
[421602724,1777938766000,-1000.0,0.00045205,2]
[421602723,1777938766000,-1000.0,0.00045205,2]
[421602719,1777938766000,-6232.76122936,0.0004517,61]
[421602720,1777938766000,-179.77162917,0.00045184,120]
[421602727,1777938766000,-1000.0,0.00045205,2]
[421602717,1777938766000,-335.59,0.00045137,120]
[421602709,1777938766000,-335.59,0.00045037,120]
[421602735,1777938766000,-2068.6,0.00045205,120]
[421602731,1777938766000,-1029.21084407,0.00045205,2]
[421602740,1777938766000,-414.6,0.00045205,120]
[421602741,1777938766000,-396.13,0.00045205,120]
[421602739,1777938766000,-494.38,0.00045205,120]
[421602722,1777938766000,-1000.0,0.00045205,2]
[421602732,1777938766000,-199.38,0.00045205,120]
[421602734,1777938766000,-1181.53,0.00045205,120]
[421602730,1777938766000,-1000.0,0.00045205,2]
[421602728,1777938766000,-1000.0,0.00045205,2]
[421602729,1777938766000,-1000.0,0.00045205,2]
[421602721,1777938766000,-1000.0,0.00045205,2]
[421602726,1777938766000,-1000.0,0.00045205,2]
[421602736,1777938766000,-3950.03,0.00045205,120]
[421602810,1777938767000,-259.0,0.00045846,30]
[421602812,1777938767000,-5553.48091367,0.000459,120]
[421602808,1777938767000,-335.59,0.00045837,120]
[421602807,1777938767000,-150.0,0.00045817,120]
[421602806,1777938767000,-1993.80725846,0.0004575,120]
[421602794,1777938767000,-482.0,0.00045554,120]
[421602804,1777938767000,-860.51265704,0.00045743,120]
[421602814,1777938767000,-300.0,0.0004593,120]
[421602815,1777938767000,-1818.39,0.00045931,120]
[421602813,1777938767000,-153.0,0.000459,120]
[421602811,1777938767000,-74728.63480998,0.00045889,120]
[421602801,1777938767000,-2500.0,0.000457,120]
[421602805,1777938767000,-1904.60252192,0.0004575,120]
[421602809,1777938767000,-2095.0,0.0004584,120]
[421602823,1777938767000,-1000.0,0.00046,30]
[421602818,1777938767000,-1000.0,0.00045999,120]
[421602816,1777938767000,-638.23,0.00045931,120]
[421602820,1777938767000,-5441.58068876,0.00046,6]
[421602827,1777938767000,-400.0,0.00046,120]
[421602824,1777938767000,-23092.56,0.00046,60]
[421602821,1777938767000,-50000.0,0.00046,32]
[421602819,1777938767000,-302.0,0.00046,20]
[421602825,1777938767000,-4750.0,0.00046,120]
[421602826,1777938767000,-531.60319947,0.00046,120]
[421602822,1777938767000,-1766.03111159,0.00046,120]
[421602829,1777938767000,-150.0,0.00046,7]
[421602840,1777938767000,-183.69642922,0.00046,30]
[421602830,1777938767000,-13379.41697159,0.00046,120]
[421602817,1777938767000,-335.59,0.00045937,120]
[421602799,1777938767000,-860.26,0.00045643,120]
[421602771,1777938767000,-76904.28468652,0.000455,120]
[421602796,1777938767000,-823.0,0.000456,120]
[421602831,1777938767000,-2500.0,0.00046,120]
[421602777,1777938767000,-860.26,0.00045543,120]
[421602776,1777938767000,-335.59,0.00045537,120]
[421602774,1777938767000,-3651.14326479,0.00045532,120]
[421602775,1777938767000,-803.25,0.00045533,60]
[421602772,1777938767000,-50000.0,0.000455,30]
[421602773,1777938767000,-179.90814549,0.000455,120]
[421602790,1777938767000,-159.0,0.00045554,120]
[421602779,1777938767000,-5000000.0,0.0004555,120]
[421602789,1777938767000,-204.0,0.00045554,120]
[421602778,1777938767000,-1118.0,0.00045547,30]
[421602781,1777938767000,-5000000.0,0.0004555,120]
[421602782,1777938767000,-5000000.0,0.0004555,120]
[421602798,1777938767000,-335.59,0.00045637,120]
[421602780,1777938767000,-5000000.0,0.0004555,120]
[421602785,1777938767000,-159.0,0.00045554,120]
[421602784,1777938767000,-177.0,0.00045554,120]
[421602786,1777938767000,-152.0,0.00045554,120]
[421602787,1777938767000,-203.0,0.00045554,120]
[421602788,1777938767000,-465.0,0.00045554,120]
[421602792,1777938767000,-153.0,0.00045554,120]
[421602791,1777938767000,-287.0,0.00045554,120]
[421602802,1777938767000,-1583.40869283,0.000457,120]
[421602793,1777938767000,-156.0,0.00045554,120]
[421602795,1777938767000,-4958.68534832,0.000456,35]
[421602803,1777938767000,-335.59,0.00045737,120]
[421602797,1777938767000,-411.0,0.00045619,30]
[421602800,1777938767000,-343.61650397,0.00045658,30]
[421602783,1777938767000,-5000000.0,0.0004555,120]
[421602839,1777938767000,-280.23973416,0.00046,120]
[421602887,1777938767000,-152.0,0.00046554,120]
[421602832,1777938767000,-83559.4919033,0.00046,120]
[421602876,1777938767000,-3000.0,0.00046524,120]
[421602864,1777938767000,-410.87,0.00046467,2]
[421602867,1777938767000,-5000000.0,0.000465,30]
[421602869,1777938767000,-482.82836625,0.000465,120]
[421602870,1777938767000,-3000.0,0.00046511,30]
[421602868,1777938767000,-866.59,0.000465,120]
[421602871,1777938767000,-3000.0,0.00046511,31]
[421602874,1777938767000,-3000.0,0.00046524,30]
[421602872,1777938767000,-3000.0,0.00046511,60]
[421602878,1777938767000,-151.0,0.00046524,60]
[421602888,1777938767000,-203.0,0.00046554,120]
[421602889,1777938767000,-465.0,0.00046554,120]
[421602877,1777938767000,-151.0,0.00046524,30]
[421602875,1777938767000,-3000.0,0.00046524,60]
[421602879,1777938767000,-151.0,0.00046524,120]
[421602881,1777938767000,-335.59,0.00046537,120]
[421602883,1777938767000,-5000000.0,0.0004655,30]
[421602880,1777938767000,-3651.14326479,0.00046532,120]
[421602884,1777938767000,-5000000.0,0.0004655,30]
[421602894,1777938767000,-156.0,0.00046554,120]
[421602886,1777938767000,-159.0,0.00046554,120]
[421602882,1777938767000,-5000000.0,0.0004655,30]
[421602885,1777938767000,-177.0,0.00046554,120]
[421602891,1777938767000,-159.0,0.00046554,120]
[421602892,1777938767000,-287.0,0.00046554,120]
[421602893,1777938767000,-153.0,0.00046554,120]
[421602895,1777938767000,-482.0,0.00046554,120]
[421602828,1777938767000,-150.0,0.00046,120]
[421602890,1777938767000,-204.0,0.00046554,120]
[421602865,1777938767000,-293.0,0.000465,30]
[421602873,1777938767000,-3000.0,0.00046511,120]
[421602861,1777938767000,-1126.3952,0.000464,120]
[421602836,1777938767000,-168.29,0.00046,7]
[421602835,1777938767000,-25413.18068136,0.00046,120]
[421602834,1777938767000,-16441.50055642,0.00046,120]
[421602838,1777938767000,-933.51579423,0.00046,120]
[421602833,1777938767000,-261.16838665,0.00046,120]
[421602837,1777938767000,-4256.42208953,0.00046,60]
[421602842,1777938767000,-1027.19,0.00046,120]
[421602866,1777938767000,-1687.47408287,0.000465,120]
[421602844,1777938767000,-1528.68686199,0.00046,120]
[421602852,1777938767000,-335.59,0.00046137,120]
[421602846,1777938767000,-152.0,0.00046,120]
[421602843,1777938767000,-12549.96137112,0.00046,120]
[421602845,1777938767000,-172.28,0.00046,30]
[421602849,1777938767000,-81257.67253773,0.00046,120]
[421602841,1777938767000,-2236.31779224,0.00046,120]
[421602848,1777938767000,-1000.76998595,0.00046,120]
[421602847,1777938767000,-2081.94309934,0.00046,120]
[421602863,1777938767000,-335.59,0.00046437,120]
[421602860,1777938767000,-145009.0,0.0004635,60]
[421602862,1777938767000,-8597.57617632,0.000464,120]
[421602858,1777938767000,-235.0,0.00046311,30]
[421602857,1777938767000,-2500.0,0.000463,120]
[421602859,1777938767000,-335.59,0.00046337,120]
[421602855,1777938767000,-15000.0,0.0004628,120]
[421602853,1777938767000,-224.24529817,0.000462,30]
[421602854,1777938767000,-335.59,0.00046237,120]
[421602850,1777938767000,-335.59,0.00046037,120]
[421602851,1777938767000,-700000.0,0.000461,30]
[421602856,1777938767000,-50000.0,0.000463,32]
[421602910,1777938768000,-232.21394384,0.00046599,30]
[421602904,1777938768000,-151.0,0.0004656,120]
[421602912,1777938768000,-341.06813314,0.00046599,30]
[421602913,1777938768000,-207.42013353,0.00046599,30]
[421602907,1777938768000,-158.22744229,0.00046575,120]
[421602903,1777938768000,-151.0,0.0004656,60]
[421602914,1777938768000,-206.47140286,0.00046599,30]
[421602898,1777938768000,-3000.0,0.0004656,45]
[421602901,1777938768000,-151.0,0.0004656,30]
[421602896,1777938768000,-505.0,0.00046556,23]
[421602897,1777938768000,-3000.0,0.0004656,30]
[421602902,1777938768000,-151.0,0.0004656,45]
[421602899,1777938768000,-3000.0,0.0004656,60]
[421602906,1777938768000,-157.91948404,0.00046575,120]
[421602900,1777938768000,-3000.0,0.0004656,120]
[421602911,1777938768000,-321.00553007,0.00046599,30]
[421602916,1777938768000,-5000000.0,0.000466,120]
[421602908,1777938768000,-201.1,0.00046575,30]
[421602928,1777938768000,-984.49388968,0.000466,120]
[421602926,1777938768000,-802690.9315452,0.000466,120]
[421602923,1777938768000,-593.71840482,0.00041205,3]
[421602925,1777938768000,-3951693.42335614,0.000466,120]
[421602921,1777938768000,-500.0,0.00041205,120]
[421602922,1777938768000,-500.0,0.00041205,120]
[421602924,1777938768000,-1502604.79610001,0.000466,120]
[421602909,1777938768000,-200.0,0.00046575,120]
[421602918,1777938768000,-5000000.0,0.000466,120]
[421602927,1777938768000,-14.14069067,0.000466,120]
[421602917,1777938768000,-5000000.0,0.000466,120]
[421602919,1777938768000,-3497395.20389999,0.000466,120]
[421602915,1777938768000,-154.80929589,0.00046599,30]
[421602905,1777938768000,-4269.67289485,0.00046575,60]
[421602920,1777938768000,-155.55,0.00013752,2]
[421602930,1777938769000,-7981.9,0.0001362,2]
[421602929,1777938769000,-1165.57730191,0.0001362,2]
[421602931,1777938769000,-130791.19355146,0.0001362,2]
[421602932,1777938769000,-26043.30398392,0.0001362,2]
[421602933,1777938769000,-6486.69601608,0.0001362,2]
[421602935,1777938769000,-40266.45593122,0.0001362,2]
[421602937,1777938769000,-398.995,0.0001362,2]
[421602934,1777938769000,-6373.21764588,0.0001362,2]
[421602936,1777938769000,-793.1136,0.0001362,2]
[421602938,1777938774000,100000.0,0.00030137,120]
[421602948,1777939389000,172.32,8.152e-05,2]
[421602958,1777939622000,206.39631319,0.00016438,30]
[421602957,1777939622000,206.39631319,0.00016438,30]
[421602959,1777939639000,206.3963132,0.00016438,30]
[421602961,1777939739000,323.556702,0.00028151,120]
[421602962,1777939748000,457.727118,0.00028151,120]
[421602963,1777939776000,305.837606,0.00028305,120]
[421602964,1777939798000,362.753007,0.00028305,120]
[421602967,1777939830000,181.376504,0.00030086,120]
[421602969,1777939831000,-1100.0,0.00013189,2]
[421602987,1777939831000,-150.0,0.00013597,2]
[421602992,1777939831000,-500.0,0.00013673,2]
[421602988,1777939831000,-45059.6063,0.00013598,2]
[421602995,1777939831000,-506.05322325,0.00013698,2]
[421602994,1777939831000,-500.0,0.00013673,2]
[421602997,1777939831000,-500.0,0.000139,5]
[421602993,1777939831000,-500.82170978,0.00013673,2]
[421602996,1777939831000,-200.0,0.000138,5]
[421602991,1777939831000,-150.0,0.00013634,2]
[421602998,1777939831000,-250.0,0.00014,2]
[421602981,1777939831000,-3709.50141264,0.00013544,2]
[421602982,1777939831000,-150.99,0.00013573,2]
[421602985,1777939831000,-9999.99,0.00013573,2]
[421602984,1777939831000,-4787.79,0.00013573,2]
[421602980,1777939831000,-5000.0,0.00013535,2]
[421602979,1777939831000,-2500.0,0.00013535,2]
[421602978,1777939831000,-196.0,0.00013534,2]
[421602977,1777939831000,-300.0,0.0001334,2]
[421602976,1777939831000,-300.0,0.00013339,2]
[421602986,1777939831000,-351.993,0.00013597,2]
[421602975,1777939831000,-300.0,0.00013339,2]
[421602973,1777939831000,-194.00072509,0.00013241,2]
[421602990,1777939831000,-500.0,0.00013634,2]
[421602972,1777939831000,-2622.49143169,0.0001319,2]
[421602974,1777939831000,-392.42377518,0.00013291,2]
[421602971,1777939831000,-6163.32093304,0.0001319,2]
[421602970,1777939831000,-100.0,0.00013189,2]
[421602983,1777939831000,-24229.26,0.00013573,2]
[421602989,1777939831000,-27689.86824043,0.0001362,2]
[421603037,1777939831000,-221.90254274,0.00018787,2]
[421602999,1777939831000,-800.0,0.0001412,2]
[421603002,1777939831000,-255.0,0.00014712,2]
[421603041,1777939831000,-265.836,0.00021048,2]
[421603039,1777939831000,-256.929,0.00020928,2]
[421603042,1777939831000,-2000.0,0.00021108,2]
[421603038,1777939831000,-2463.0,0.0001948,2]
[421603036,1777939831000,-2000.0,0.00018763,2]
[421603034,1777939831000,-150.745,0.00018318,2]
[421603032,1777939831000,-298.73625268,0.00018192,12]
[421603016,1777939831000,-180.46,0.00015528,2]
[421603022,1777939831000,-300.0,0.00016,2]
[421603019,1777939831000,-800.0,0.00015532,2]
[421603023,1777939831000,-164.1108,0.00016803,2]
[421603021,1777939831000,-500.0,0.00015902,2]
[421603030,1777939831000,-1632.85601833,0.00018192,12]
[421603040,1777939831000,-1042.74,0.00020951,2]
[421603026,1777939831000,-642.16272821,0.00018192,12]
[421603001,1777939831000,-250.0,0.00014565,2]
[421603003,1777939831000,-500.0,0.000148,2]
[421603007,1777939831000,-800.0,0.00014826,2]
[421603000,1777939831000,-800.0,0.00014473,2]
[421603024,1777939831000,-3709.50141264,0.00017328,2]
[421603005,1777939831000,-500.0,0.000148,2]
[421603006,1777939831000,-500.0,0.000148,2]
[421603008,1777939831000,-1000.0,0.00014838,2]
[421603009,1777939831000,-1000.0,0.00014838,2]
[421603010,1777939831000,-1000.0,0.00014838,2]
[421603012,1777939831000,-539.11263333,0.00014838,2]
[421603015,1777939831000,-800.0,0.00015179,2]
[421603028,1777939831000,-1415.65050646,0.00018192,12]
[421603004,1777939831000,-172.20009306,0.000148,2]
[421603084,1777939832000,-190.42,0.00028661,7]
[421603094,1777939832000,-191.73,0.00028788,30]
[421603083,1777939832000,-191.73,0.0002863,2]
[421603095,1777939832000,-190.42,0.0002882,2]
[421603093,1777939832000,-190.42,0.00028788,30]
[421603077,1777939832000,-581.58,0.00027397,10]
[421603074,1777939832000,-55334.1201004,0.00027375,2]
[421603075,1777939832000,-632.91,0.00027397,10]
[421603079,1777939832000,-16349.89,0.000274,7]
[421603080,1777939832000,-215.24,0.000274,7]
[421603081,1777939832000,-2000.0,0.00028144,2]
[421603073,1777939832000,-150.0,0.000273,10]
[421603082,1777939832000,-190.42,0.0002863,2]
[421603089,1777939832000,-190.42,0.00028725,2]
[421603086,1777939832000,-3709.50141264,0.0002868,2]
[421603088,1777939832000,-191.73,0.00028693,30]
[421603092,1777939832000,-191.73,0.00028756,7]
[421603087,1777939832000,-190.42,0.00028693,30]
[421603090,1777939832000,-191.73,0.00028725,2]
[421603091,1777939832000,-190.42,0.00028756,7]
[421603097,1777939832000,-190.42,0.00028852,7]
[421603106,1777939832000,-191.73,0.00028979,30]
[421603105,1777939832000,-190.42,0.00028979,30]
[421603096,1777939832000,-191.73,0.0002882,2]
[421603098,1777939832000,-191.73,0.00028852,7]
[421603107,1777939832000,-190.42,0.0002901,2]
[421603078,1777939832000,-151.97,0.000274,7]
[421603085,1777939832000,-191.73,0.00028661,7]
[421603072,1777939832000,-1901.37269788,0.00026389,44]
[421603057,1777939832000,-1000.0,0.00024658,2]
[421603071,1777939832000,-287.59,0.00025811,7]
[421603101,1777939832000,-190.42,0.00028915,2]
[421603045,1777939832000,-5000.0,0.00021918,2]
[421603044,1777939832000,-150.0,0.00021318,2]
[421603046,1777939832000,-155.94698944,0.00022407,2]
[421603043,1777939832000,-3709.50141264,0.00021112,2]
[421603047,1777939832000,-155.94698942,0.00022407,2]
[421603053,1777939832000,-387.53,0.00022716,2]
[421603051,1777939832000,-487.0,0.00022635,5]
[421603050,1777939832000,-898.91,0.00022562,2]
[421603049,1777939832000,-2463.0,0.0002248,2]
[421603052,1777939832000,-183.11,0.00022716,2]
[421603054,1777939832000,-2000.0,0.00023453,2]
[421603055,1777939832000,-639.3,0.00023553,2]
[421603076,1777939832000,-697.89,0.00027397,10]
[421603056,1777939832000,-162.48539177,0.00024655,2]
[421603058,1777939832000,-285.64,0.00024658,2]
[421603061,1777939832000,-436.0,0.00024918,5]
[421603059,1777939832000,-287.59,0.00024658,2]
[421603062,1777939832000,-285.64,0.00024946,7]
[421603060,1777939832000,-3709.50141264,0.00024896,2]
[421603064,1777939832000,-285.64,0.00025234,30]
[421603063,1777939832000,-287.59,0.00024946,7]
[421603066,1777939832000,-2463.0,0.0002548,2]
[421603067,1777939832000,-285.64,0.00025523,2]
[421603070,1777939832000,-285.64,0.00025811,7]
[421603069,1777939832000,-2000.0,0.00025799,2]
[421603068,1777939832000,-287.59,0.00025523,2]
[421603065,1777939832000,-287.59,0.00025234,30]
[421603048,1777939832000,-155.94698942,0.00022407,2]
[421603102,1777939832000,-191.73,0.00028915,2]
[421603139,1777939832000,-215.24,0.000325,7]
[421603104,1777939832000,-191.73,0.00028947,7]
[421603141,1777939832000,-150.0,0.0003419,2]
[421603143,1777939832000,-200.0,0.00036224,2]
[421603137,1777939832000,-171.647669,0.00032373,14]
[421603144,1777939832000,-3709.50141264,0.00036248,2]
[421603138,1777939832000,-3709.50141264,0.00032464,2]
[421603162,1777939832000,-150.0,0.00038614,2]
[421603145,1777939832000,-171.647669,0.00036596,21]
[421603140,1777939832000,-150.0,0.00032562,2]
[421603147,1777939832000,-800.0,0.00036643,13]
[421603156,1777939832000,-351.993,0.00037698,49]
[421603158,1777939832000,-539.35,0.00038034,30]
[421603149,1777939832000,-800.0,0.00036643,13]
[421603148,1777939832000,-800.0,0.00036643,13]
[421603157,1777939832000,-200.0,0.00037923,2]
[421603146,1777939832000,-800.0,0.00036643,13]
[421603150,1777939832000,-800.0,0.00036643,13]
[421603153,1777939832000,-200.0,0.00037074,2]
[421603154,1777939832000,-190.53878735,0.000372,120]
[421603151,1777939832000,-800.0,0.00036643,13]
[421603155,1777939832000,-150.0,0.00037694,2]
[421603152,1777939832000,-252.52428512,0.00037005,2]
[421603160,1777939832000,-500.38926088,0.00038543,5]
[421603159,1777939832000,-151.97,0.000384,30]
[421603161,1777939832000,-150.0,0.00038614,2]
[421603164,1777939832000,-16349.89,0.000394,7]
[421603165,1777939832000,-215.24,0.000394,30]
[421603099,1777939832000,-190.42,0.00028883,30]
[421603142,1777939832000,-150.0,0.00035899,2]
[421603136,1777939832000,-840.0,0.0003224,2]
[421603163,1777939832000,-200.0,0.00038772,2]
[421603134,1777939832000,-1091.62892598,0.000317,2]
[421603103,1777939832000,-190.42,0.00028947,7]
[421603100,1777939832000,-191.73,0.00028883,30]
[421603109,1777939832000,-190.42,0.00029042,7]
[421603119,1777939832000,-190.42,0.00029201,2]
[421603108,1777939832000,-191.73,0.0002901,2]
[421603110,1777939832000,-191.73,0.00029042,7]
[421603111,1777939832000,-190.42,0.00029074,30]
[421603112,1777939832000,-191.73,0.00029074,30]
[421603117,1777939832000,-190.42,0.00029169,30]
[421603118,1777939832000,-191.73,0.00029169,30]
[421603116,1777939832000,-191.73,0.00029137,7]
[421603114,1777939832000,-191.73,0.00029105,2]
[421603113,1777939832000,-190.42,0.00029105,2]
[421603115,1777939832000,-190.42,0.00029137,7]
[421603121,1777939832000,-190.55,0.00029232,7]
[421603133,1777939832000,-1091.62892601,0.000317,2]
[421603120,1777939832000,-191.73,0.00029201,2]
[421603131,1777939832000,-500.0,0.0003075,5]
[421603126,1777939832000,-626.0,0.00030086,30]
[421603128,1777939832000,-12346.7110796,0.00030444,2]
[421603125,1777939832000,-682.0,0.00030086,30]
[421603130,1777939832000,-16349.89,0.000307,7]
[421603135,1777939832000,-1091.62892598,0.000317,2]
[421603129,1777939832000,-1005.00869738,0.00030462,5]
[421603132,1777939832000,-150.0,0.00031011,2]
[421603123,1777939832000,-150.0,0.00029534,2]
[421603127,1777939832000,-621.0,0.00030086,30]
[421603122,1777939832000,-191.78,0.00029232,7]
[421603124,1777939832000,-500.0,0.00029914,5]
[421603201,1777939833000,-156.0,0.00042465,120]
[421603205,1777939833000,-198.26,0.00042466,2]
[421603200,1777939833000,-153.0,0.00042465,120]
[421603204,1777939833000,-57444.0,0.00042466,30]
[421603203,1777939833000,-25044.59509183,0.00042466,30]
[421603198,1777939833000,-159.0,0.00042464,120]
[421603199,1777939833000,-191.0,0.00042464,120]
[421603196,1777939833000,-155.0,0.00042464,120]
[421603206,1777939833000,-198.25,0.00042466,2]
[421603208,1777939833000,-107386.5368995,0.00042466,120]
[421603202,1777939833000,-160.0,0.00042465,120]
[421603195,1777939833000,-157.62166348,0.00042365,2]
[421603220,1777939833000,-152.0,0.00043352,120]
[421603207,1777939833000,-155.0,0.00042466,2]
[421603214,1777939833000,-162.48539177,0.00043,7]
[421603210,1777939833000,-3225.71816283,0.00042487,120]
[421603211,1777939833000,-169.06665037,0.00042487,120]
[421603212,1777939833000,-494.29189016,0.00042487,120]
[421603213,1777939833000,-898.91,0.00042546,120]
[421603215,1777939833000,-162.48539177,0.00043,3]
[421603219,1777939833000,-159.0,0.00043352,120]
[421603216,1777939833000,-200.0,0.00043019,2]
[421603218,1777939833000,-177.0,0.00043352,120]
[421603217,1777939833000,-4997.29411943,0.00043319,19]
[421603221,1777939833000,-203.0,0.00043352,120]
[421603197,1777939833000,-204.0,0.00042464,120]
[421603209,1777939833000,-574.424858,0.00042486,78]
[421603192,1777939833000,-152.0,0.00042352,120]
[421603183,1777939833000,-162.48539177,0.00042,7]
[421603194,1777939833000,-157.62166348,0.00042365,2]
[421603231,1777939833000,-150.0,0.00043636,120]
[421603169,1777939833000,-3709.50141264,0.00040032,15]
[421603170,1777939833000,-1871.36387313,0.000402,30]
[421603166,1777939833000,-150.0,0.00039579,2]
[421603168,1777939833000,-442.55230552,0.00039764,120]
[421603167,1777939833000,-200.0,0.00039622,2]
[421603171,1777939833000,-1871.36387312,0.000402,30]
[421603172,1777939833000,-1871.36387312,0.000402,30]
[421603176,1777939833000,-14881.48788277,0.00041209,70]
[421603178,1777939833000,-152.0,0.00041363,3]
[421603177,1777939833000,-200.0,0.0004132,2]
[421603182,1777939833000,-978.8957,0.00041927,120]
[421603191,1777939833000,-159.0,0.00042352,120]
[421603174,1777939833000,-200.0,0.00040471,2]
[421603179,1777939833000,-150.0,0.00041558,120]
[421603175,1777939833000,-41431.0,0.0004095,60]
[421603181,1777939833000,-700.0,0.000419,15]
[421603180,1777939833000,-500.0,0.0004168,10]
[421603184,1777939833000,-1302.67898693,0.00042,30]
[421603190,1777939833000,-177.0,0.00042352,120]
[421603185,1777939833000,-200.0,0.0004217,2]
[421603186,1777939833000,-215.24,0.000422,30]
[421603187,1777939833000,-342.73235125,0.00042228,10]
[421603189,1777939833000,-41431.0,0.000423,60]
[421603188,1777939833000,-16349.89,0.000423,7]
[421603193,1777939833000,-203.0,0.00042352,120]
[421603173,1777939833000,-150.0,0.00040223,2]
[421603222,1777939833000,-155.0,0.00043464,120]
[421603223,1777939833000,-204.0,0.00043464,120]
[421603277,1777939833000,-500.0,0.00046301,120]
[421603257,1777939833000,-41431.0,0.00045,60]
[421603258,1777939833000,-400.48767111,0.00045073,2]
[421603260,1777939833000,-167.17,0.00045205,120]
[421603263,1777939833000,-160.0,0.00045465,120]
[421603261,1777939833000,-151.97,0.000454,30]
[421603264,1777939833000,-5000.0,0.00045476,22]
[421603259,1777939833000,-5000.0,0.00045169,61]
[421603266,1777939833000,-150.0,0.00045817,120]
[421603262,1777939833000,-155.0,0.00045464,120]
[421603265,1777939833000,-5000.0,0.00045599,35]
[421603269,1777939833000,-5000.0,0.00045999,20]
[421603278,1777939833000,-500.0,0.00046301,120]
[421603251,1777939833000,-5000.0,0.00044999,14]
[421603279,1777939833000,-500.0,0.00046301,120]
[421603272,1777939833000,-8006.0,0.00046274,120]
[421603268,1777939833000,-5000.0,0.00045999,6]
[421603270,1777939833000,-400.0,0.00046134,120]
[421603276,1777939833000,-500.0,0.00046301,120]
[421603274,1777939833000,-5000.0,0.00046299,32]
[421603273,1777939833000,-155.57864445,0.00046295,7]
[421603275,1777939833000,-500.0,0.00046301,120]
[421603282,1777939833000,-500.0,0.00046301,120]
[421603283,1777939833000,-500.0,0.00046301,120]
[421603280,1777939833000,-235.12022561,0.00046301,120]
[421603224,1777939833000,-159.0,0.00043464,120]
[421603281,1777939833000,-500.0,0.00046301,120]
[421603271,1777939833000,-821.75,0.0004619,2]
[421603253,1777939833000,-5000.0,0.00044999,90]
[421603267,1777939833000,-5000.0,0.00045999,7]
[421603254,1777939833000,-5000.0,0.00044999,65]
[421603227,1777939833000,-156.0,0.00043465,120]
[421603230,1777939833000,-5000.0,0.00043599,5]
[421603228,1777939833000,-160.0,0.00043465,120]
[421603225,1777939833000,-191.0,0.00043464,120]
[421603229,1777939833000,-500.0,0.00043553,120]